Cogmind - Beta 13 @@@ ROGUE MODE // 2024.05.09 @ 19:37:56 Player: Gargash Result: Destroyed by G-47 Trooper with Particle Gun Performance ------------- Evolutions (2) 1000 Regions Visited (3) 600 Robots Destroyed (33) 165 Value Destroyed (1007) 1007 Prototype IDs (2) 40 Alien Tech Used (0) 0 Bonus (0) 0 TOTAL SCORE: 2812 Bonus ------- None Cogmind --------- Core Integrity 0/550 Matter 33/300 Energy 100/100 System Corruption 0% Temperature Cool (9) Movement Hovering (60) Location -8/Materials Parts ------- > --- POWER (1) -------- (None) > --- PROPULSION (5) --- Airjet > --- UTILITY (3) ------ (None) > --- WEAPON (2) ------- (None) > --- INVENTORY (5) ---- Large Storage Unit Small Laser Particle Gun Assault Rifle Heavy Mace Peak State ------------ > --- POWER ------------ Nuclear Core > --- PROPULSION ------- Aluminum Leg Aluminum Leg Improved Aluminum Leg Improved Aluminum Leg Carbon-fiber Leg > --- UTILITY ---------- Cooling System Large Storage Unit Medium Armor Plating > --- WEAPON ----------- Improved EM Shotgun Ion Cannon > --- INVENTORY -------- Improved Ion Engine Improved Ion Engine Wheel Heat Sink Large Storage Unit Medium Armor Plating Medium Armor Plating EM Pulse Gun Small Laser Beam Rifle Assault Rifle Assault Rifle Assault Rifle Grenade Launcher Heavy Mace [Rating: 25] Favorites ----------- Power Ion Engine Engine Ion Engine Power Core Light Nuclear Core Propulsion Aluminum Leg Leg Aluminum Leg Wheel Wheel Hover Unit Airjet Utility Large Storage Unit Device Heat Sink Storage Large Storage Unit Protection Medium Armor Plating Weapon Assault Rifle Energy Gun Beam Rifle Energy Cannon Ion Cannon Ballistic Gun Assault Rifle Launcher Grenade Launcher Impact Weapon Heavy Hammer Slashing Weapon Mining Claw Build | -11 -10 -9 -8 ------- Run | Yrd Mat Mat Mat Slots Evolved 4 | . . 2 2 Power . | . . . . Propulsion 3 | . . 2 1 Utility 1 | . . . 1 Weapon . | . . . . Parts Attached 76 | 6 19 31 20 Power 8 | 1 2 4 1 Engine 6 | 1 1 4 . Core 2 | . 1 . 1 Reactor . | . . . . Propulsion 19 | 2 4 8 5 Treads . | . . . . Leg 15 | 2 2 8 3 Wheel 3 | . 2 . 1 Hover 1 | . . . 1 Flight . | . . . . Utility 14 | 1 4 5 4 Device 7 | . 3 2 2 Storage 2 | 1 1 . . Processor . | . . . . Hackware . | . . . . Protection 5 | . . 3 2 Artifact . | . . . . Weapon 35 | 2 9 14 10 Energy Gun 17 | 2 5 6 4 Energy Cannon 1 | . . . 1 Ballistic Gun 6 | . 1 4 1 Ballistic Cannon . | . . . . Launcher 3 | . 1 . 2 Special Weapon . | . . . . Impact Weapon 5 | . . 3 2 Slashing Weapon 3 | . 2 1 . Piercing Weapon . | . . . . Special Melee Weapon . | . . . . Unidentified Prototypes 2 | . . 2 . Corrupted Parts 1 | . . 1 . System Corruption 4 | . . 4 . Parts Lost 24 | . 2 6 16 Power 2 | . . 1 1 Propulsion 10 | . . 3 7 Utility 6 | . 1 1 4 Weapon 6 | . 1 1 4 Highest Loss Streak 12 | . 2 4 12 To Critical Strikes . | . . . . Average Slot Usage (%) 90 | . 99 88 79 Engine 7 | . 5 9 3 Core 3 | . 8 . 4 Leg 25 | . 25 23 31 Wheel 6 | . 2 10 . Device 9 | . 13 7 8 Storage 11 | . 14 11 8 Protection 2 | . . 2 7 Energy Gun 8 | . 12 7 5 Ballistic Gun 9 | . 6 12 . Impact Weapon 1 | . . 1 4 Slashing Weapon 2 | . 7 . . Naked Turns 12 | . . . 12 Heaviest Build 45 | 13 31 40 45 Greatest Support 61 | 20 20 46 61 Greatest Overweight (x) 3 | 1 1 3 1 Average Overweight (x) 1 | . . 1 . Largest Inventory Capacity 15 | 8 15 15 15 Average Capacity 12 | 7 8 15 14 Most Carried 15 | 7 13 15 15 Average Carried 11 | 4 8 12 13 Final Capacity 15 | 8 15 15 5 Final Carried 15 | 4 13 15 5 Class Distribution -------------------- 51% | Scavenger-Mutant 48% | Mutant Dominant Class ---------------- Mutant | -10/Materials Scavenger-Mutant | -9/Materials Scavenger-Mutant | -8/Materials Resources | -11 -10 -9 -8 ----------- Run | Yrd Mat Mat Mat Matter Collected 947 | 201 98 547 101 Remotely . | . . . . Salvage Created 1099 | . 222 576 301 Parts 66 | . 15 29 22 Haulers Intercepted . | . . . . Recyclers Shooed 3 | . 1 1 1 Parts Field Recycled . | . . . . Retrieved Matter . | . . . . Parts Self-Destructed . | . . . . Prevented . | . . . . Kills | -11 -10 -9 -8 ------- Run | Yrd Mat Mat Mat Combat Hostiles Destroyed 25 | . 4 12 9 Guns 16 | . 2 12 2 Cannons 3 | . . . 3 AOE 6 | . 2 . 4 Classes Destroyed 10 | . 5 3 2 Worker 2 | . 1 . 1 Builder 2 | . . 1 1 Recycler 1 | . 1 . . Operator 1 | . 1 . . Watcher 2 | . 1 1 . Swarmer 4 | . . . 4 Grunt 16 | . 4 8 4 Duelist 1 | . . 1 . Sentry 3 | . . 3 . Heavy 1 | . . . 1 Best Kill Streak 10 | . 5 3 10 Combat Bots Only 8 | . 3 3 8 Max Kills in Single Turn 3 | . 3 1 2 Gunslinging . | . . . . Exploded 1 | . 1 . 1 Melee . | . . . . Uniques/NPCs Destroyed . | . . . . Combat | -11 -10 -9 -8 -------- Run | Yrd Mat Mat Mat Hostile Shots Fired 318 | . 47 85 186 Missed 98 | . 10 21 67 Damage Taken 3304 | . 509 903 1892 Core 895 | . 126 216 553 Absorbed by Shields . | . . . . Regen/Repaired (Parts) 97 | . . 97 . Core Remaining (%) 65 | 100 49 46 . Volleys Fired 93 | . 18 54 21 Largest 2 | . 2 2 2 Hottest 105 | . 90 96 105 Shots Fired 178 | . 32 106 40 Gun 155 | . 28 106 21 Cannon 12 | . . . 12 Launcher 11 | . 4 . 7 Special . | . . . . Kinetic 80 | . 3 72 5 Thermal 61 | . 17 29 15 Explosive 11 | . 4 . 7 Electromagnetic 26 | . 8 5 13 Robot Hit Streak 8 | . 6 8 8 Robot Miss Streak 5 | . 2 3 5 Penetration Max . | . . . . Secondary Targets 1 | . 1 . . Max Gunslinging Chain 1 | . 1 . . Shots Hit Robots 113 | . 21 65 27 Core Hits 68 | . 15 25 28 Critical Kills . | . . . . Critical Parts Destroyed . | . . . . Critical Strikes 5 | . 1 4 . Burn 5 | . 1 4 . Melee Attacks 63 | . 29 19 15 Impact 32 | . . 17 15 Slashing 31 | . 29 2 . Piercing . | . . . . Sneak Attacks . | . . . . Combat Hostiles . | . . . . Follow-up Attacks . | . . . . Damage Inflicted 2512 | . 524 888 1100 Guns 1394 | . 246 888 260 Cannons 207 | . . . 207 Explosions 911 | . 278 . 633 Melee . | . . . . Ramming . | . . . . Kinetic 605 | . 22 536 47 Thermal 759 | . 156 318 285 Explosive 862 | . 278 . 584 Electromagnetic 286 | . 68 34 184 Impact . | . . . . Slashing . | . . . . Piercing . | . . . . Highest Corruption 4 | . . 4 . Average Corruption 4 | . . 4 . Corruption Purged . | . . . . Corruption Blocked . | . . . . Effects 2 | . . 2 . Message Errors 1 | . . 1 . Matter Fused 1 | . . 1 . Overload Shots . | . . . . Overflow Damage . | . . . . Projectiles . | . . . . Explosions . | . . . . Melee . | . . . . Knockbacks . | . . . . Impact . | . . . . Kinetic . | . . . . Secondary . | . . . . Self-Inflicted Damage 79 | . 38 . 41 Shots 6 | . 3 . 3 Rammed . | . . . . Targets Rammed . | . . . . Kicked . | . . . . Crushed . | . . . . Highest Temperature 422 | . 422 399 38 Average Temperature 173 | . 222 141 17 Received Heat Transfer 1206 | . 276 390 540 Effects 9 | . 7 2 . Shutdowns 2 | . 1 1 . Energy Bleed 3 | . 2 1 . Interference 2 | . 2 . . Matter Decay 1 | . 1 . . Damage (minor) 1 | . 1 . . Siege Activations . | . . . . Robots Corrupted . | . . . . Combat Hostiles . | . . . . Parts Fried . | . . . . Impact Corruptions . | . . . . Robots Melted . | . . . . Combat Hostiles . | . . . . Parts Melted 8 | . . 7 1 Heat Transferred 2025 | . 495 1073 457 Parts Sabotaged . | . . . . Parts Stolen . | . . . . Parts Stripped . | . . . . Power Chain Reactions 1 | . . . 1 Alert | -11 -10 -9 -8 ------- Run | Yrd Mat Mat Mat Peak Influence 307 | . 169 186 307 Initial 78 | . . 11 78 Average 81 | . 63 74 156 Maximum Alert Level 1 | . . . 1 Low Security (%) 94 | 100 100 100 62 Level 1 5 | . . . 37 Level 2 . | . . . . Level 3 . | . . . . Level 4 . | . . . . Level 5 . | . . . . High Security . | . . . . Max Security . | . . . . Squads Dispatched 4 | . . 1 3 Investigation . | . . . . Extermination . | . . . . Reinforcement 4 | . . 1 3 Assault . | . . . . Garrison . | . . . . Intercept . | . . . . Searches Triggered . | . . . . Construction Impeded 1 | . . . 1 Haulers Reinforced . | . . . . Active Scanning Responses . | . . . . Cargo Convoy Interrupts . | . . . . Stealth | -11 -10 -9 -8 --------- Run | Yrd Mat Mat Mat Distress Signals 1 | . . 1 . Communications Jammed . | . . . . Distress Signals . | . . . . Times Spotted 50 | . 6 26 18 Peak Tracking Total 8 | . 4 4 8 Tactical Retreats 3 | . . 2 1 Traps | -11 -10 -9 -8 ------- Run | Yrd Mat Mat Mat Traps Triggered 1 | . . 1 . Indirectly . | . . . . Trap Hack Attempts . | . . . . Triggered . | . . . . Disarmed . | . . . . Reprogrammed . | . . . . Reused . | . . . . Traps Extracted . | . . . . Installed . | . . . . Triggered . | . . . . Machines | -11 -10 -9 -8 ---------- Run | Yrd Mat Mat Mat Machines Disabled 2 | . 1 . 1 Max in Single Turn 1 | . 1 . 1 Machines Repaired . | . . . . Machines Dismantled . | . . . . Machines Sabotaged . | . . . . Overloaded Fab Kills . | . . . . Hacking | -11 -10 -9 -8 --------- Run | Yrd Mat Mat Mat Machines Accessed 12 | . 4 8 . Terminals 9 | . 3 6 . Fabricators . | . . . . Repair Stations 1 | . . 1 . Recycling Units 2 | . 1 1 . Scanalyzers . | . . . . Garrison Access . | . . . . Total Hacks 38 | . 12 26 . Successful 14 | . 6 8 . Failed 24 | . 6 18 . Catastrophic 1 | . 1 . . Database Lockouts . | . . . . Manual 10 | . 4 6 . Terminals 30 | . 10 20 . Fabricators . | . . . . Repair Stations 3 | . . 3 . Recycling Units 5 | . 2 3 . Scanalyzers . | . . . . Garrison Access . | . . . . Terminal Hacks 7 | . 3 4 . Alert Level 2 | . . 2 . Locate Traps 1 | . 1 . . Dispatch Records 1 | . 1 . . Surveillance Status 1 | . . 1 . Investigation Status 1 | . . 1 . Zone Layout 1 | . 1 . . Fabricator Hacks . | . . . . Repair Station Hacks 2 | . . 2 . Scan Component 1 | . . 1 . Repair 1 | . . 1 . Recycling Unit Hacks 3 | . 1 2 . Report Inventory 2 | . 1 1 . Retrieve Components 1 | . . 1 . Scanalyzer . | . . . . Garrison Access Hacks . | . . . . Unauthorized Hacks 2 | . 2 . . Terminals 2 | . 2 . . Assimilate 2 | . 2 . . Fabricators . | . . . . Repair Stations . | . . . . Recycling Units . | . . . . Scanalyzers . | . . . . Garrison Access . | . . . . Data Cores Recovered 1 | . 1 . . Used . | . . . . Hacking Detections 9 | . 3 6 . Full Trace Events 3 | . 2 1 . Feedback Events . | . . . . Feedback Blocked . | . . . . Robot Schematics Acquired . | . . . . Robots Built . | . . . . Authchips . | . . . . Time . | . . . . Total Robot Build Rating . | . . . . Part Schematics Acquired . | . . . . Parts Built . | . . . . Authchips . | . . . . Time . | . . . . Total Part Build Rating . | . . . . Parts Repaired 1 | . . 1 . Time 32 | . . 32 . Parts Recycled . | . . . . Recycled Matter . | . . . . Retrieved Matter . | . . . . Retrieved Components 3 | . . 3 . Parts Scanalyzed . | . . . . Part Schematics Acquired . | . . . . Parts Damaged . | . . . . Bothacking | -11 -10 -9 -8 ------------ Run | Yrd Mat Mat Mat Used RIF Installer . | . . . . Robots Hacked . | . . . . Non-combat . | . . . . Combat . | . . . . Robot Hacks Applied . | . . . . Relay Couplers Released . | . . . . Fabnet Peak Effective % . | . . . . Robots Rewired . | . . . . Allies Hacked . | . . . . Hacks Repelled . | . . . . Allies | -11 -10 -9 -8 -------- Run | Yrd Mat Mat Mat Total Allies . | . . . . Largest Group . | . . . . Highest-Rated Group . | . . . . Highest-Rated Ally . | . . . . Total Orders . | . . . . Ally Attacks . | . . . . Total Damage . | . . . . Kills . | . . . . Allies Corrupted . | . . . . Allies Melted . | . . . . Intel | -11 -10 -9 -8 ------- Run | Yrd Mat Mat Mat Robot Analysis Total . | . . . . Derelict Logs Recovered . | . . . . Drone Launches . | . . . . Drone Recoveries . | . . . . Exploration | -11 -10 -9 -8 ------------- Run | Yrd Mat Mat Mat Turns Passed 2090 | 56 568 1156 310 Spaces Moved 1054 | 40 321 532 161 Core 38 | 15 . . 23 Treads . | . . . . Legs 630 | 25 282 202 121 Wheels 369 | . 39 330 . Hover 17 | . . . 17 Flight . | . . . . Fastest Speed 50 | 50 95 95 50 Average Speed 125 | 102 117 138 105 Slowest Speed 260 | 120 190 260 190 Overloaded Moves . | . . . . Propulsion Burnouts . | . . . . Robots Hopped . | . . . . Cave-ins Triggered . | . . . . Exploration Rate (%) 26 | 4 39 47 17 Regions Visited 3 Branch Regions . Pre-discovered Areas . | . . . . Known Exits Taken . | . . . . Unknown Exits Taken 3 | 1 1 1 . Scrap Searched . | . . . . Spaces Dug 36 | . 8 17 11 Terrain Destroyed 84 | . 27 17 40 Melee 36 | . 8 17 11 Projectile 1 | . . . 1 AOE 47 | . 19 . 28 Terrain Rammed . | . . . . Walls Destroyed . | . . . . Machines Disabled . | . . . . Actions | -11 -10 -9 -8 --------- Run | Yrd Mat Mat Mat Total 1515 | 55 421 806 233 Wait 140 | . . 138 2 Move 1051 | 39 320 531 161 Hop . | . . . . Pick Up 61 | 10 23 20 8 Fast Attach 4 | . . 2 2 Attach 29 | 6 3 10 10 Detach . | . . . . Swap 43 | . 16 19 8 Drop 31 | . 12 13 6 Fire 93 | . 18 54 21 Melee 63 | . 29 19 15 Ram . | . . . . Kick . | . . . . Crush . | . . . . Escape Stasis . | . . . . Rewire . | . . . . Trap . | . . . . Miscellaneous . | . . . . Route ------- -11/Scrapyard -10/Materials -9/Materials -8/Materials History --------- Turn | Location | Event 18 | -11/Scrapyard | Discovered new exit (range 15) 57 | -11/Scrapyard | Entered Materials 285 | -10/Materials | Core integrity fell below 50% 377 | -10/Materials | Build established: Mutant 611 | -10/Materials | Discovered new exit (range 16) 625 | -10/Materials | Entered another Materials area 625 | -9/Materials | Evolved 2 slots: Propulsion x2 758 | -9/Materials | Lost 4 parts (1p2n1w) 1360 | -9/Materials | Build established: Scavenger-Mutant 1574 | -9/Materials | Repaired Imp. Aluminum Leg 1750 | -9/Materials | Core integrity fell below 50% 1759 | -9/Materials | Discovered new exit (range 8) 1781 | -9/Materials | Entered another Materials area 1781 | -8/Materials | Evolved 2 slots: Propulsion x1, Utility x1 2027 | -8/Materials | Lost 4 parts (2n1u1w) 2028 | -8/Materials | Destroyed 8 combat bots 2066 | -8/Materials | Core integrity fell below 50% 2069 | -8/Materials | Core integrity fell below 20% 2091 | -8/Materials | Destroyed by G-47 Trooper with Particle Gun Last Messages --------------- Carbon-fiber Leg destroyed. Penetrated by Slug. Grenade Launcher destroyed. Penetrated by Slug. Slug penetrates Wall. Med. Armor Plating destroyed. Penetrated by Slug. Cooling System destroyed. EM Pulse Gun destroyed. Assault Rifle destroyed. Nuclear Core destroyed. G-47 Trooper IFF system glitched. Slug penetrates Wall. Critical hit (Burn: +37). Dropped Lrg. Storage Unit. Critical hit (Burn: +37). Penetrated by Slug. U-05 Engineer lays Concrete. Acquired Airjet. Slug penetrates Wall. Map ----- +----------------------------------------------------+ | | | | | ???????????????????????????????????????????? | | ???????????????????????????????????????????? | | ???????????????????????????????????????????? | | ???????????????????????????????????????????? | | ???????????????????????????????????????????? | | ???????????????????????????????????????????? | | ???????????????????????????????????????????? | | ???????????????????????????????????????????? | | ???????????????????????????????????????????? | | ???????????????????????????????????????????? | | ???????????????????????????????????????????? | | ???????????????????????????????????????????? | | ???????????????????????????????????????????? | | ???????????????????????????????????????????? | | ???????????????????????????????????????????? | | ??????????????????????##########???????????? | | ??????????????????????# #?????###???? | | ??????????????????????# """ #???###"###?? | | ??????????????????????# """ !#???# #?? | | ??????????????????????# """ #??## #?? | | ??????????????????????# #??## #?? | | ??????????????????????# x""" #??## #?? | | ??????????????????????# """ #??## #?? | | ??????????????????????# @""" #??## #?? | | ????????????????####### ggx #??## #?? | | ????????????????# ###/########## #?? | | ????????????????# g #?? | | ????????????????# #?? | | ????????????????# #?? | | ????????????????# ############ #?? | | ????????????????## #########???# #?? | | ?????????????????# ## #???# #?? | | ?????????????????# ## #???# #?? | | ?????????????????# ## #???# #?? | | ?????????????????# # =[! #???# #?? | | ?????????????????# # *![ #???# #?? | | ????????????????## ## * #???# #?? | | ?????????######## ! ########## #"#?? | | ?????????# % ## ###?? | | ?????????# = ## #???? | | ?????????# ## #???? | | ????####?#% %#### # ###### ## #???? | | ### # ####"#+#### !# ## #???? | | ? + """ # # #""" # ## #???? | | ??# """ + # #"""[ ! / ## #???? | | ???? """ # # "" #""" # ## #???? | | ?????? %# # * """" # ! # ## #???? | | ???????? # # " " ########## ## #???? | +----------------------------------------------------+ Best States ------------- Heat Dissipation 53 Energy Generation 14 Energy Capacity 280 Matter Stores 264 Matter Capacity 300 Sight Range 16 Terrain Scan Range 14 Terrain Scan Density 10 Armor Coverage 225 Evasion (%) 55 Item Schematics ----------------- None Robot Schematics ------------------ None Fabricated ------------ Nothing Alien Tech Used ----------------- None Achievements -------------- None Challenges ------------ None Game ------ Seed RefineryMetafieldBeam Manual? 0 Play Time 00:35:27 Cumulative 37.4 hours Start 2024.05.09 @ 18:37:24 End 2024.05.09 @ 19:37:56 Sessions 1 Manual Loads 0 Difficulty Rogue Special Mode None Game No. 21 Rogue 21 Adventurer 0 Explorer 0 Win Type - Total 0 Types 0/0/0/0/0/0/0/0/0 Lore% 24 Gallery% 38 Achievement% 27 Wizard Run 0 Options --------- Layout 1 ASCII 0 Keyboard 0 Movement Mouse Keybinds 0 Fullscreen 1 Font 24/Smallcaps Map View 50x35 Zoom Use 0% Tactical HUD 0 Map Filters NONE Filters NONE Steam 1 RUN: c189f1f6-7a30-4c98-9f19-a306ec65cbd6